fUST/lending_fUST_20250724
["ID","MTS","AMOUNT","RATE_DAILY","PERIOD"]
[374566012,1753357849251,-460.0,0.00021643,2]
[374566013,1753357849261,-746.69,0.00021643,2]
[374566014,1753357849271,-460.0,0.00021643,2]
[374566015,1753357849280,-460.0,0.00021643,2]
[374566016,1753357849290,-2493.37,0.00021643,2]
[374566017,1753357849300,-1833.22,0.00021643,2]
[374566018,1753357849310,-718.48,0.00021643,2]
[374566019,1753357849319,-619.89,0.00021643,2]
[374566020,1753357849329,-460.0,0.00021643,2]
[374566021,1753357849339,-460.0,0.00021643,2]
[374566022,1753357849349,-460.0,0.00021643,2]
[374566023,1753357849359,-460.0,0.00021643,2]
[374566024,1753357849370,-537.16,0.00021643,2]
[374566025,1753357849381,-924.13,0.00021643,2]
[374566026,1753357849391,-460.0,0.00021643,2]
[374566027,1753357849402,-672.62,0.00021643,2]
[374566028,1753357849416,-544.04902487,0.00021643,2]
[374566029,1753357849426,-1108.42,0.00021643,2]
[374566030,1753357849436,-613.33,0.00021643,2]
[374566031,1753357849447,-460.0,0.00021643,2]
[374566032,1753357849458,-488.02,0.00021643,2]
[374566033,1753357849468,-1920.16,0.00021643,2]
[374566034,1753357849478,-460.0,0.00021643,2]
[374566035,1753357849491,-460.0,0.00021643,2]
[374566036,1753357849502,-460.0,0.00021643,2]
[374566037,1753357849513,-460.0,0.00021643,2]
[374566038,1753357849523,-460.0,0.00021643,2]
[374566039,1753357849533,-460.0,0.00021643,2]
[374566040,1753357849543,-1709.09,0.00021643,2]
[374566041,1753357849553,-1353.56,0.00021643,2]
[374566042,1753357849563,-1497.33,0.00021643,2]
[374566043,1753357849574,-3517.43,0.00021643,2]
[374566044,1753357849584,-460.0,0.00021643,2]
[374566045,1753357849594,-460.0,0.00021643,2]
[374566046,1753357849605,-460.0,0.00021643,2]
[374566047,1753357849617,-460.0,0.00021643,2]
[374566048,1753357849627,-460.0,0.00021643,2]
[374566049,1753357849637,-1075.55,0.00021643,2]
[374566050,1753357849647,-716.8,0.00021643,2]
[374566051,1753357849658,-776.0,0.00021644,2]
[374566052,1753357849668,-567.0,0.00021644,2]
[374566053,1753357849678,-1548.42478719,0.00021762,5]
[374566054,1753357849688,-224.6,0.00021812,5]
[374566055,1753357849826,-841.0,0.00021821,2]
[374566056,1753357849837,-429.7456075,0.00021892,2]
[374566057,1753357849847,-503.45,0.00021917,2]
[374566058,1753357849858,-460.0,0.00021917,2]
[374566059,1753357849870,-460.0,0.00021917,2]
[374566060,1753357849880,-460.0,0.00021917,2]
[374566061,1753357849890,-460.0,0.00021917,2]
[374566062,1753357849900,-485.64,0.00021917,2]
[374566063,1753357849910,-460.0,0.00021917,2]
[374566064,1753357849920,-460.0,0.00021917,2]
[374566065,1753357849930,-746.69,0.00021917,2]
[374566066,1753357849940,-460.0,0.00021917,2]
[374566067,1753357849951,-2493.37,0.00021917,2]
[374566068,1753357849961,-1833.22,0.00021917,2]
[374566069,1753357849971,-500.0,0.00021917,2]
[374566070,1753357849980,-486.79078975,0.00021917,2]
[374566071,1753357849990,-718.48,0.00021917,2]
[374566072,1753357849999,-619.89,0.00021917,2]
[374566073,1753357850010,-460.0,0.00021917,2]
[374566074,1753357850020,-460.0,0.00021917,2]
[374566075,1753357850030,-460.0,0.00021917,2]
[374566076,1753357850040,-460.0,0.00021917,2]
[374566077,1753357850050,-537.16,0.00021917,2]
[374566078,1753357850059,-924.13,0.00021917,2]
[374566079,1753357850069,-460.0,0.00021917,2]
[374566080,1753357850079,-672.62,0.00021917,2]
[374566081,1753357850089,-1108.42,0.00021917,2]
[374566082,1753357850099,-613.33,0.00021917,2]
[374566083,1753357850110,-460.0,0.00021917,2]
[374566084,1753357850122,-460.0,0.00021917,2]
[374566085,1753357850132,-1920.16,0.00021917,2]
[374566086,1753357850142,-460.0,0.00021917,2]
[374566087,1753357850152,-460.0,0.00021917,2]
[374566088,1753357850162,-460.0,0.00021917,2]
[374566089,1753357850172,-460.0,0.00021917,2]
[374566090,1753357850182,-460.0,0.00021917,2]
[374566091,1753357850192,-1709.09,0.00021917,2]
[374566092,1753357850202,-1353.56,0.00021917,2]
[374566093,1753357850211,-1497.33,0.00021917,2]
[374566094,1753357850220,-3517.43,0.00021917,2]
[374566095,1753357850230,-460.0,0.00021917,2]
[374566096,1753357850243,-460.0,0.00021917,2]
[374566097,1753357850256,-460.0,0.00021917,2]
[374566098,1753357850266,-460.0,0.00021917,2]
[374566099,1753357850276,-1075.55,0.00021917,2]
[374566100,1753357850286,-716.8,0.00021917,2]
[374566101,1753357850296,-776.0,0.00021918,2]
[374566102,1753357850306,-567.0,0.00021918,2]
[374566103,1753357850315,-179.71133149,0.00021918,2]
[374566104,1753357850325,-360.0,0.00021931,2]
[374566105,1753357850335,-1548.42478719,0.00021934,6]
[374566106,1753357850344,-180.0,0.00021971,2]
[374566107,1753357850353,-163.0,0.00022,2]
[374566108,1753357850363,-178.0,0.00022,2]
[374566109,1753357850372,-169.0,0.00022,2]
[374566110,1753357850381,-34169.55,0.00022,2]
[374566111,1753357850390,-166.67,0.00022,2]
[374566112,1753357850400,-151.0,0.00022,7]
[374566113,1753357850413,-151.0,0.00022,7]
[374566114,1753357850423,-562.71561963,0.00022006,2]
[374566115,1753357850433,-150.803752,0.00022043,2]
[374566116,1753357850443,-1548.42478719,0.00022107,6]
[374566117,1753357850454,-224.6,0.00022155,5]
[374566118,1753357850463,-500.0,0.0002216,2]
[374566119,1753357850473,-503.45,0.00022191,2]
[374566120,1753357850483,-460.0,0.00022191,2]
[374566121,1753357850494,-460.0,0.00022191,2]
[374566122,1753357850503,-525.68859441,0.00022191,2]
[374566123,1753357850513,-460.0,0.00022191,2]
[374566124,1753357850522,-485.64,0.00022191,2]
[374566125,1753357850532,-347.44,0.00022191,2]
[374566126,1753357850541,-460.0,0.00022191,2]
[374566127,1753357850550,-746.69,0.00022191,2]
[374566128,1753357850560,-460.0,0.00022191,2]
[374566129,1753357850569,-2493.37,0.00022191,2]
[374566130,1753357850579,-1833.22,0.00022191,2]
[374566131,1753357850588,-718.48,0.00022191,2]
[374566132,1753357850598,-619.89,0.00022191,2]
[374566133,1753357850607,-460.0,0.00022191,2]
[374566134,1753357850617,-460.0,0.00022191,2]
[374566135,1753357850626,-460.0,0.00022191,2]
[374566136,1753357850635,-460.0,0.00022191,2]
[374566137,1753357850645,-537.16,0.00022191,2]
[374566138,1753357850654,-924.13,0.00022191,2]
[374566139,1753357850664,-460.0,0.00022191,2]
[374566140,1753357850673,-672.62,0.00022191,2]
[374566141,1753357850682,-1108.42,0.00022191,2]
[374566142,1753357850692,-613.33,0.00022191,2]
[374566143,1753357850702,-452.96630311,0.00022191,2]
[374566144,1753357850711,-1920.16,0.00022191,2]
[374566145,1753357850721,-460.0,0.00022191,2]
[374566146,1753357850731,-460.0,0.00022191,2]
[374566147,1753357850740,-460.0,0.00022191,2]
[374566148,1753357850750,-464.34,0.00022191,2]
[374566149,1753357850759,-460.0,0.00022191,2]
[374566150,1753357850769,-460.0,0.00022191,2]
[374566151,1753357850778,-1709.09,0.00022191,2]
[374566152,1753357850788,-1353.56,0.00022191,2]
[374566153,1753357850797,-1497.33,0.00022191,2]
[374566154,1753357850806,-3517.43,0.00022191,2]
[374566155,1753357850815,-460.0,0.00022191,2]
[374566156,1753357850825,-460.0,0.00022191,2]
[374566157,1753357850836,-460.0,0.00022191,2]
[374566158,1753357850856,-592.32,0.00022191,2]
[374566159,1753357850868,-1075.55,0.00022191,2]
[374566160,1753357850878,-716.8,0.00022191,2]
[374566161,1753357850887,-776.0,0.00022192,2]
[374566162,1753357850897,-567.0,0.00022192,2]
[374566163,1753357850907,-1548.42478719,0.00022279,6]
[374566164,1753357850916,-842.0,0.0002232,2]
[374566165,1753357850926,-500.0,0.00022343,2]
[374566166,1753357850936,-500.0,0.00022343,2]
[374566167,1753357850945,-5707.88667328,0.0002235,2]
[374566168,1753357850954,-281.0,0.00022403,2]
[374566169,1753357850964,-150.803752,0.0002241,2]
[374566170,1753357850973,-180.0,0.00022417,2]
[374566171,1753357850983,-1548.42478719,0.00022452,7]
[374566172,1753357850992,-503.45,0.00022465,2]
[374566173,1753357851002,-460.0,0.00022465,2]
[374566174,1753357851012,-193.3,0.00022465,2]
[374566175,1753357851021,-460.0,0.00022465,2]
[374566176,1753357851030,-485.64,0.00022465,2]
[374566177,1753357851040,-460.0,0.00022465,2]
[374566178,1753357851049,-746.69,0.00022465,2]
[374566179,1753357851059,-460.0,0.00022465,2]
[374566180,1753357851068,-2493.37,0.00022465,2]
[374566181,1753357851077,-939.61606654,0.00022465,2]
[374566182,1753357851179,-893.60393346,0.00022465,2]
[374566183,1753357851190,-718.48,0.00022465,2]
[374566184,1753357851200,-619.89,0.00022465,2]
[374566185,1753357851210,-460.0,0.00022465,2]
[374566186,1753357851219,-460.0,0.00022465,2]
[374566187,1753357851229,-571.41,0.00022465,2]
[374566188,1753357851238,-460.0,0.00022465,2]
[374566189,1753357851248,-537.16,0.00022465,2]
[374566190,1753357851257,-924.13,0.00022465,2]
[374566191,1753357851267,-460.0,0.00022465,2]
[374566192,1753357851277,-672.62,0.00022465,2]
[374566193,1753357851287,-1108.42,0.00022465,2]
[374566194,1753357851297,-1733.23,0.00022465,2]
[374566195,1753357851307,-613.33,0.00022465,2]
[374566196,1753357851317,-551.14182321,0.00022465,2]
[374566197,1753357851328,-1920.16,0.00022465,2]
[374566198,1753357851338,-392.19,0.00022465,2]
[374566199,1753357851347,-460.0,0.00022465,2]
[374566200,1753357851358,-460.0,0.00022465,2]
[374566201,1753357851368,-1709.09,0.00022465,2]
[374566202,1753357851378,-1353.56,0.00022465,2]
[374566203,1753357851387,-1497.33,0.00022465,2]
[374566204,1753357851398,-3517.43,0.00022465,2]
[374566205,1753357851410,-460.0,0.00022465,2]
[374566206,1753357851421,-460.0,0.00022465,2]
[374566207,1753357851432,-460.0,0.00022465,2]
[374566208,1753357851442,-1075.55,0.00022465,2]
[374566209,1753357851451,-716.8,0.00022465,2]
[374566210,1753357851462,-776.0,0.00022466,2]
[374566211,1753357851472,-567.0,0.00022466,2]
[374566212,1753357851483,-460.0,0.00022478,2]
[374566213,1753357851493,-180.0,0.0002249,2]
[374566214,1753357851503,-12006.18918259,0.0002249,7]
[374566215,1753357851512,-155.0,0.0002249,2]
[374566216,1753357851522,-12624.810388,0.0002249,7]
[374566217,1753357851532,-160.0,0.0002249,7]
[374566218,1753357851542,-224.6,0.00022498,5]
[374566219,1753357851551,-166.67,0.000225,2]
[374566220,1753357851561,-180.0,0.00022506,2]
[374566221,1753357851571,-577.4526085,0.00022548,2]
[374566222,1753357851581,-281.0,0.0002257,2]
[374566223,1753357851590,-245.39646125,0.000226,4]
[374566224,1753357851599,-150.803752,0.00022614,3]
[374566225,1753357851609,-1548.42478719,0.00022624,7]
[374566226,1753357851620,-150.803752,0.00022703,7]
[374566227,1753357851630,-3286.2022343,0.00022714,2]
[374566228,1753357851640,-150.803752,0.00022721,3]
[374566229,1753357851651,-716.77,0.00022725,4]
[374566230,1753357851660,-151.0,0.00022725,7]
[374566231,1753357851670,-151.0,0.00022725,7]
[374566232,1753357851680,-151.0,0.00022725,7]
[374566233,1753357851692,-151.181492,0.00022725,7]
[374566234,1753357851702,-6919.09713743,0.00022739,2]
[374566235,1753357851712,-503.45,0.00022739,2]
[374566236,1753357851722,-460.0,0.00022739,2]
[374566237,1753357851732,-206.7,0.00022739,2]
[374566238,1753357851741,-485.64,0.00022739,2]
[374566239,1753357851750,-460.0,0.00022739,2]
[374566240,1753357851760,-746.69,0.00022739,2]
[374566241,1753357851770,-460.0,0.00022739,2]
[374566242,1753357851781,-2493.37,0.00022739,2]
[374566243,1753357851789,-1833.22,0.00022739,2]
[374566244,1753357851799,-718.48,0.00022739,2]
[374566245,1753357851810,-619.89,0.00022739,2]
[374566246,1753357851819,-460.0,0.00022739,2]
[374566247,1753357851830,-460.0,0.00022739,2]
[374566248,1753357851840,-460.0,0.00022739,2]
[374566249,1753357851849,-537.16,0.00022739,2]
[374566250,1753357851859,-924.13,0.00022739,2]
[374566251,1753357851871,-460.0,0.00022739,2]
[374566252,1753357851879,-672.62,0.00022739,2]
[374566253,1753357851889,-1108.42,0.00022739,2]
[374566254,1753357851899,-613.33,0.00022739,2]
[374566255,1753357851909,-1920.16,0.00022739,2]
[374566256,1753357851919,-460.0,0.00022739,2]
[374566257,1753357851930,-460.0,0.00022739,2]
[374566258,1753357851938,-1709.09,0.00022739,2]
[374566259,1753357851947,-1497.33,0.00022739,2]
[374566260,1753357851955,-1353.56,0.00022739,2]
[374566261,1753357851964,-3517.43,0.00022739,2]
[374566262,1753357851973,-460.0,0.00022739,2]
[374566263,1753357851982,-373.42,0.00022739,2]
[374566264,1753357851991,-212.32,0.00022739,2]
[374566265,1753357852001,-1075.55,0.00022739,2]
[374566266,1753357852010,-716.8,0.00022739,2]
[374566267,1753357852020,-776.0,0.0002274,2]
[374566268,1753357852030,-567.0,0.0002274,2]
[374566269,1753357852040,-150.803752,0.00022768,7]
[374566270,1753357852050,-587.0,0.00022776,2]
[374566271,1753357852059,-281.0,0.00022776,2]
[374566272,1753357852070,-1548.42478719,0.00022797,7]
[374566273,1753357852079,-1123.41,0.000228,7]
[374566274,1753357852090,-562.71561963,0.000228,2]
[374566275,1753357852099,-716.77,0.00022825,4]
[374566276,1753357852109,-150.803752,0.00022834,7]
[374566277,1753357852122,-224.6,0.00022841,5]
[374566278,1753357852132,-429.7456075,0.00022851,2]
[374566279,1753357852141,-429.7456075,0.00022851,2]
[374566280,1753357852151,-429.7456075,0.00022851,2]
[374566281,1753357852161,-429.7456075,0.00022851,2]
[374566282,1753357852171,-429.7456075,0.00022851,2]
[374566283,1753357852181,-429.7456075,0.00022851,2]
[374566284,1753357852191,-429.7456075,0.00022851,2]
[374566285,1753357852200,-293.2476709,0.00022851,2]
[374566286,1753357852210,-429.7456075,0.00022851,2]
[374566287,1753357852220,-429.7456075,0.00022851,2]
[374566288,1753357852229,-429.7456075,0.00022851,2]
[374566289,1753357852240,-859.3557326,0.00022851,2]
[374566290,1753357852250,-429.7456075,0.00022851,2]
[374566291,1753357852291,-429.7456075,0.00022851,2]
[374566292,1753357852301,-429.7456075,0.00022851,2]
[374566293,1753357852311,-429.7456075,0.00022851,2]
[374566294,1753357852321,-429.4614264,0.00022851,2]
[374566295,1753357852330,-150.803752,0.00022858,9]
[374566296,1753357852340,-500.98396891,0.00022873,2]
[374566297,1753357852350,-500.0,0.00022873,2]
[374566298,1753357852359,-500.0,0.00022873,2]
[374566299,1753357852370,-501.487689,0.00022873,2]
[374566300,1753357852379,-500.35759823,0.00022873,2]
[374566301,1753357852389,-500.0,0.00022873,2]
[374566302,1753357852398,-501.42269042,0.00022873,2]
[374566303,1753357852410,-500.0,0.00022873,2]
[374566304,1753357852421,-500.0,0.00022873,2]
[374566305,1753357852431,-500.0,0.00022873,2]
[374566306,1753357852440,-501.01581911,0.00022873,2]
[374566307,1753357852452,-500.0,0.00022873,2]
[374566308,1753357852464,-500.0,0.00022873,2]
[374566309,1753357852474,-500.0,0.00022873,2]
[374566310,1753357852485,-500.0,0.00022873,2]
[374566311,1753357852496,-649.91416204,0.00022873,2]
[374566312,1753357852506,-562.39892855,0.00022873,2]
[374566313,1753357852514,-500.0,0.00022873,2]
[374566314,1753357852524,-151.0,0.00022873,7]
[374566315,1753357852533,-384.974475,0.00022873,7]
[374566316,1753357852543,-384.974475,0.00022873,7]
[374566317,1753357852554,-151.0,0.00022873,7]
[374566318,1753357852563,-151.0,0.00022873,7]
[374566319,1753357852575,-151.0,0.00022873,7]
[374566320,1753357852586,-215.0738,0.00022884,2]
[374566321,1753357852598,-25000.0,0.00022884,2]
[374566322,1753357852610,-3154.12167562,0.00022884,2]
[374566323,1753357852628,-150.803752,0.00022889,6]
[374566324,1753357852639,-576.27187642,0.00022891,2]
[374566325,1753357852651,-500.0,0.00022891,2]
[374566326,1753357852661,-1711.7267647,0.000229,7]
[374566327,1753357852673,-133627.58349544,0.000229,2]
[374566328,1753357852683,-151.000002,0.000229,7]
[374566329,1753357852694,-151.0,0.000229,7]
[374566330,1753357852703,-151.0,0.000229,7]
[374566331,1753357852714,-151.0,0.000229,7]
[374566332,1753357852724,-151.0,0.000229,7]
[374566333,1753357852734,-384.974475,0.000229,7]
[374566334,1753357852744,-384.974475,0.000229,7]
[374566335,1753357852753,-151.0,0.000229,7]
[374566336,1753357852763,-151.0,0.000229,7]
[374566337,1753357852774,-151.0,0.000229,7]
[374566338,1753357852783,-151.0,0.000229,7]
[374566339,1753357852792,-151.0,0.000229,7]
[374566340,1753357852801,-151.0,0.000229,7]
[374566341,1753357852811,-151.0,0.000229,7]
[374566342,1753357852820,-151.0,0.000229,7]
[374566343,1753357852830,-152.022095,0.000229,2]
[374566344,1753357852840,-151.0,0.000229,7]
[374566345,1753357852850,-151.0,0.000229,7]
[374566346,1753357852860,-716.77,0.00022925,7]
[374566347,1753357852876,-281.0,0.00022964,2]
[374566348,1753357852886,-1548.42478719,0.00022969,8]
[374566349,1753357852896,-151.342857,0.00022969,7]
[374566350,1753357852905,-151.342857,0.00022969,7]
[374566351,1753357852915,-150.803752,0.00022996,6]
[374566352,1753357852924,-1500.00512593,0.00023,4]
[374566353,1753357852932,-1965.8065903,0.00023,2]
[374566354,1753357852941,-43268.94729141,0.00023,4]
[374566355,1753357852950,-346.68603289,0.00023,2]
[374566356,1753357852959,-1336.56704993,0.00023,2]
[374566357,1753357852969,-1002.21,0.00023,7]
[374566358,1753357852979,-34169.55,0.00023,2]
[374566359,1753357852989,-160.0,0.00023,2]
[374566360,1753357852999,-160.0,0.00023,3]
[374566361,1753357853009,-526.24749348,0.00023,3]
[374566362,1753357853019,-840.23756827,0.00023,3]
[374566363,1753357853029,-151.0,0.00023,7]
[374566364,1753357853039,-151.0,0.00023,7]
[374566365,1753357853049,-503.45,0.00023013,2]
[374566366,1753357853059,-228.32,0.00023013,2]
[374566367,1753357853068,-485.64,0.00023013,2]
[374566368,1753357853078,-460.0,0.00023013,2]
[374566369,1753357853088,-746.69,0.00023013,2]
[374566370,1753357853098,-204.96,0.00023013,2]
[374566371,1753357853107,-2493.37,0.00023013,2]
[374566372,1753357853120,-1833.22,0.00023013,2]
[374566373,1753357853129,-718.48,0.00023013,2]
[374566374,1753357853139,-619.89,0.00023013,2]
[374566375,1753357853149,-460.0,0.00023013,2]
[374566376,1753357853158,-460.0,0.00023013,2]
[374566377,1753357853168,-460.0,0.00023013,2]
[374566378,1753357853178,-537.16,0.00023013,2]
[374566379,1753357853190,-924.13,0.00023013,2]
[374566380,1753357853199,-458.77372059,0.00023013,2]
[374566381,1753357853209,-672.62,0.00023013,2]
[374566382,1753357853218,-1108.42,0.00023013,2]
[374566383,1753357853227,-613.33,0.00023013,2]
[374566384,1753357853237,-1920.16,0.00023013,2]
[374566385,1753357853246,-460.0,0.00023013,2]
[374566386,1753357853255,-1709.09,0.00023013,2]
[374566387,1753357853266,-1497.33,0.00023013,2]
[374566388,1753357853275,-1353.56,0.00023013,2]
[374566389,1753357853285,-3517.43,0.00023013,2]
[374566390,1753357853294,-460.0,0.00023013,2]
[374566391,1753357853303,-1075.55,0.00023013,2]
[374566392,1753357853312,-716.8,0.00023013,2]
[374566393,1753357853321,-776.0,0.00023014,2]
[374566394,1753357853329,-567.0,0.00023014,2]
[374566395,1753357853340,-163.0,0.00023014,7]
[374566396,1753357853355,-716.77,0.00023025,3]
[374566397,1753357853372,-180.0,0.00023026,2]
[374566398,1753357853381,-811.43970814,0.00023077,2]
[374566399,1753357853391,-281.0,0.00023088,2]
[374566400,1753357853400,-292.055637,0.00023089,8]
[374566401,1753357853411,-223.0,0.00023094,2]
[374566402,1753357853422,-428.582618,0.00023096,2]
[374566403,1753357853438,-166.67,0.00023096,2]
[374566404,1753357853459,-716.77,0.00023125,5]
[374566405,1753357853469,-577.6552115,0.00023125,2]
[374566406,1753357853479,-178.2667198,0.00023125,2]
[374566407,1753357853489,-306.1586121,0.00023125,2]
[374566408,1753357853499,-306.0,0.00023125,2]
[374566409,1753357853510,-159.9507963,0.00023125,2]
[374566410,1753357853519,-154.6022915,0.00023125,2]
[374566411,1753357853530,-1548.42478719,0.00023141,8]
[374566412,1753357853541,-150.803752,0.00023152,9]
[374566413,1753357853550,-281.0,0.00023169,2]
[374566414,1753357853559,-224.6,0.00023184,6]
[374566415,1753357853569,-281.0,0.00023194,2]
[374566416,1753357853579,-716.77,0.00023225,4]
[374566417,1753357853588,-503.45,0.00023287,2]
[374566418,1753357853599,-485.64,0.00023287,2]
[374566419,1753357853608,-460.0,0.00023287,2]
[374566420,1753357853621,-746.69,0.00023287,2]
[374566421,1753357853631,-1833.22,0.00023287,2]
[374566422,1753357853642,-2493.37,0.00023287,2]
[374566423,1753357853652,-718.48,0.00023287,2]
[374566424,1753357853662,-619.89,0.00023287,2]
[374566425,1753357853672,-487.35,0.00023287,2]
[374566426,1753357853682,-460.0,0.00023287,2]
[374566427,1753357853693,-460.0,0.00023287,2]
[374566428,1753357853703,-537.16,0.00023287,2]
[374566429,1753357853713,-924.13,0.00023287,2]
[374566430,1753357853723,-672.62,0.00023287,2]
[374566431,1753357853732,-353.69394849,0.00023287,2]
[374566432,1753357854706,-754.72605151,0.00023287,2]
[374566433,1753357854716,-613.33,0.00023287,2]
[374566434,1753357854726,-1920.16,0.00023287,2]
[374566435,1753357854736,-460.0,0.00023287,2]
[374566436,1753357854746,-1709.09,0.00023287,2]
[374566437,1753357854756,-1497.33,0.00023287,2]
[374566438,1753357854767,-1353.56,0.00023287,2]
[374566439,1753357854777,-3517.43,0.00023287,2]
[374566440,1753357854787,-460.0,0.00023287,2]
[374566441,1753357854797,-1075.55,0.00023287,2]
[374566442,1753357854807,-716.8,0.00023287,2]
[374566443,1753357854817,-776.0,0.00023288,2]
[374566444,1753357854827,-567.0,0.00023288,2]
[374566445,1753357854837,-1067.85,0.000233,2]
[374566446,1753357854847,-151.155984,0.000233,7]
[374566447,1753357854858,-1000.0,0.000233,2]
[374566448,1753357854869,-1548.42478719,0.00023314,9]
[374566449,1753357854878,-716.77,0.00023325,7]
[374566450,1753357854888,-800.0,0.00023346,2]
[374566451,1753357854899,-418.58641536,0.00023397,2]
[374566452,1753357854912,-736.11619864,0.00023397,2]
[374566453,1753357854923,-1000.0,0.00023421,2]
[374566454,1753357854932,-500.0,0.00023421,2]
[374566455,1753357854943,-500.0,0.00023421,2]
[374566456,1753357854954,-842.41110112,0.00023421,2]
[374566457,1753357855108,-460.0,0.00019178,2]
[374566458,1753357855122,-460.0,0.00019178,2]
[374566459,1753357855132,-410.6123134,0.00019178,2]
[374566460,1753357855144,-49.3876866,0.00019178,2]
[374566461,1753357855155,-460.0,0.00019178,2]
[374566462,1753357855166,-460.0,0.00019452,2]
[374566463,1753357855176,-461.46978179,0.00019452,2]
[374566464,1753357855187,-460.0,0.00019452,2]
[374566465,1753357855197,-460.0,0.00019726,2]
[374566466,1753357855207,-460.0,0.00019726,2]
[374566467,1753357855217,-88.25021821,0.0002,2]
[374566468,1753357855229,-371.74978179,0.0002,2]
[374566469,1753357855239,-157.15124203,0.0002,2]
[374566470,1753357855366,-460.0,0.00019178,2]
[374566471,1753357855377,-40.0,0.00019452,2]
[374566472,1753357855389,-420.0,0.00019452,2]
[374566473,1753357855399,-460.0,0.00019726,2]
[374566474,1753357855411,-302.84875797,0.0002,2]
[374566475,1753357855423,-460.0,0.0002,2]
[374566476,1753357855433,-431.28408128,0.00020273,2]
[374566477,1753357855443,-405.8518374,0.00020273,2]
[374566478,1753358001263,159.372972,0.00013699,2]
[374566489,1753358534800,-305.8046956,0.00019078,2]
[374566490,1753358534822,-300.0,0.00019177,2]
[374566491,1753358534844,-460.0,0.00019178,2]
[374566492,1753358534866,-460.0,0.00019178,2]
[374566493,1753358534888,-460.0,0.00019178,2]
[374566494,1753358534911,-460.0,0.00019178,2]
[374566495,1753358534933,-460.0,0.00019178,2]
[374566496,1753358534956,-460.0,0.00019178,2]
[374566497,1753358534978,-219.82330503,0.00019178,2]
[374566498,1753358535000,-460.0,0.00019178,2]
[374566499,1753358535021,-460.0,0.00019178,2]
[374566500,1753358535042,-460.0,0.00019178,2]
[374566501,1753358535064,-460.0,0.00019178,2]
[374566502,1753358535086,-460.0,0.00019178,2]
[374566503,1753358535107,-460.0,0.00019178,2]
[374566504,1753358535128,-460.0,0.00019178,2]
[374566505,1753358535150,-460.0,0.00019178,2]
[374566506,1753358535171,-460.0,0.00019178,2]
[374566507,1753358535193,-460.0,0.00019178,2]
[374566508,1753358535215,-460.0,0.00019178,2]
[374566509,1753358535237,-460.0,0.00019178,2]
[374566510,1753358535259,-460.0,0.00019178,2]
[374566511,1753358535280,-460.0,0.00019178,2]
[374566512,1753358535303,-460.0,0.00019178,2]
[374566513,1753358535326,-460.0,0.00019178,2]
[374566514,1753358535351,-460.0,0.00019178,2]
[374566515,1753358535372,-460.0,0.00019178,2]
[374566516,1753358535566,-460.0,0.00019178,2]
[374566517,1753358535588,-460.0,0.00019178,2]
[374566518,1753358535609,-512.39,0.00019178,2]
[374566519,1753358535635,-460.0,0.00019178,2]
[374566520,1753358535657,-365.29932237,0.00019178,2]
[374566521,1753358535681,-460.0,0.00019178,2]